[Event "Amsterdam Chess Open 2024"]
[Site "Amsterdam"]
[Date "2024.11.01"]
[Round "2.6"]
[White "Stojiljkovic, Stefan"]
[Black "Braun, Vitali"]
[Result "1-0"]
[ECO "C00"]
[WhiteElo "2122"]
[BlackElo "2339"]
[Annotator "ChessBase"]
[PlyCount "245"]
[EventDate "2024.10.31"]
[EventType "swiss"]
[EventCountry "NED"]
[SourceTitle "playchess.com"]
[Source "ChessBase"]
[SourceQuality "1"]
[TimeControl "5400+30"]

1. e4 {[%emt 0:00:07]} e6 {[%emt 0:01:16]} 2. b3 {[%emt 0:00:38]} b6 {[%emt 0:00:27]} 3. Bb2 {[%emt 0:00:38]} Bb7 {[%emt 0:00:10]} 4. Bd3 {[%emt 0:01:04]} Na6 {[%emt 0:07:34]} 5. Bxa6 {[%emt 0:08:11]} Bxa6 {[%emt 0:00:46]} 6. d3 {[%emt 0:00:40]} d5 {[%emt 0:02:22]} 7. exd5 {[%emt 0:02:59]} Qxd5 {[%emt 0:00:34]} 8. Qf3 {[%emt 0:01:26]} Bb7 {[%emt 0:02:21]} 9. Qxd5 {[%emt 0:01:16]} Bxd5 {[%emt 0:00:07]} 10. Ne2 {[%emt 0:01:16]} Nf6 {[%emt 0:02:44]} 11. O-O {[%emt 0:04:39]} Be7 {[%emt 0:06:21]} 12. Nbc3 {[%emt 0:04:47]} Bb7 {[%emt 0:00:07]} 13. Ng3 {[%emt 0:04:20]} O-O-O {[%emt 0:10:16]} 14. Rfe1 {[%emt 0:01:56]} h5 {[%emt 0:02:38]} 15. Nge4 {[%emt 0:04:28]} h4 {[%emt 0:04:47]} 16. Ng5 {[%emt 0:11:53]} Rdf8 {[%emt 0:00:35]} 17. Nce4 {[%emt 0:05:30]} Rh5 {[%emt 0:02:56]} 18. Nh3 {[%emt 0:02:02]} Nd7 {[%emt 0:18:31]} 19. a4 {[%emt 0:08:35]} a6 {[%emt 0:07:16]} 20. Ba3 {[%emt 0:07:35]} Bxa3 {[%emt 0:08:26]} 21. Rxa3 {[%emt 0:00:02]} e5 {[%emt 0:00:33]} 22. b4 {[%emt 0:03:43]} Rg8 {[%emt 0:06:36]} 23. a5 {[%emt 0:06:25]} g5 {[%emt 0:00:19]} 24. f3 {[%emt 0:02:03]} f5 {[%emt 0:00:38]} 25. Nexg5 {[%emt 0:00:13]} Rhxg5 {[%emt 0:00:22]} 26. Nxg5 {[%emt 0:00:06]} Rxg5 {[%emt 0:00:05]} 27. Kf2 {[%emt 0:00:42]} b5 {[%emt 0:01:02]} 28. c4 {[%emt 0:04:49]} Rg6 {[%emt 0:02:28]} 29. cxb5 {[%emt 0:00:39]} axb5 {[%emt 0:00:06]} 30. Rc3 {[%emt 0:00:25]} Bd5 {[%emt 0:00:41]} 31. g3 {[%emt 0:01:14]} h3 {[%emt 0:00:36]} 32. Rc2 {[%emt 0:02:49]} Rd6 {[%emt 0:03:16]} 33. Rc3 {[%emt 0:02:22]} Kb7 {[%emt 0:01:35]} 34. Rec1 {[%emt 0:01:35]} c6 {[%emt 0:00:09]} 35. Re1 {[%emt 0:00:05]} Re6 {[%emt 0:02:09]} 36. Rc2 {[%emt 0:00:57]} Kc7 {[%emt 0:00:56]} 37. Rce2 {[%emt 0:01:09]} Kd6 {[%emt 0:00:16]} 38. f4 {[%emt 0:00:57]} e4 {[%emt 0:03:34]} 39. dxe4 {[%emt 0:00:19]} fxe4 {[%emt 0:00:06]} 40. g4 {[%emt 0:01:07]} c5 {[%emt 0:00:52]} 41. bxc5+ {[%emt 0:00:50]} Nxc5 {[%emt 0:00:12]} 42. Ke3 {[%emt 0:00:19]} Nd3 {[%emt 0:01:02]} 43. Rg1 {[%emt 0:01:07]} Rf6 {[%emt 0:00:40]} 44. g5 {[%emt 0:00:40]} Rxf4 {[%emt 0:00:25]} 45. g6 {[%emt 0:00:09]} Rf3+ {[%emt 0:00:25]} 46. Kd2 {[%emt 0:01:30]} Nf4 {[%emt 0:01:00]} 47. Re3 {[%emt 0:01:02]} Rf2+ {[%emt 0:00:30]} 48. Kd1 {[%emt 0:02:17]} Ra2 {[%emt 0:00:34]} 49. Rg5 {[%emt 0:00:15]} Rxa5 {[%emt 0:01:28]} 50. g7 {[%emt 0:00:06]} Ra8 {[%emt 0:00:15]} 51. Ra3 {[%emt 0:00:40]} Rg8 {[%emt 0:02:06]} 52. Ra6+ {[%emt 0:00:08]} Ke7 {[%emt 0:00:47]} 53. Re5+ {[%emt 0:00:18]} Be6 {[%emt 0:00:08]} 54. Rxe4 {[%emt 0:00:15]} Rxg7 {[%emt 0:00:09]} 55. Ra7+ {[%emt 0:00:40]} Kf6 {[%emt 0:00:20]} 56. Rxf4+ {[%emt 0:00:25]} Ke5 {[%emt 0:00:05]} 57. Rxg7 {[%emt 0:00:15]} Kxf4 {[%emt 0:00:04]} 58. Rb7 {[%emt 0:01:56]} Bc4 {[%emt 0:00:45]} 59. Ke1 {[%emt 0:00:29]} Kf3 {[%emt 0:01:26]} 60. Rg7 {[%emt 0:00:12]} Be6 {[%emt 0:00:30]} 61. Rg6 {[%emt 0:00:49]} Bf5 {[%emt 0:00:25]} 62. Rg3+ {[%emt 0:00:26]} Ke4 {[%emt 0:00:14]} 63. Kd2 {[%emt 0:00:21]} Kd4 {[%emt 0:00:48]} 64. Rf3 {[%emt 0:00:14]} Be6 {[%emt 0:00:21]} 65. Rf4+ {[%emt 0:00:11]} Ke5 {[%emt 0:00:35]} 66. Rh4 {[%emt 0:00:26]} Kf6 {[%emt 0:01:04]} 67. Rh6+ {[%emt 0:00:37]} Ke5 {[%emt 0:00:07]} 68. Kc3 {[%emt 0:00:31]} Bf5 {[%emt 0:00:48]} 69. Rh4 {[%emt 0:00:37]} Kd6 {[%emt 0:00:32]} 70. Kd4 {[%emt 0:00:35]} Be6 {[%emt 0:00:14]} 71. Rh5 {[%emt 0:00:17]} Bd7 {[%emt 0:00:38]} 72. Kc3 {[%emt 0:00:23]} Be6 {[%emt 0:00:39]} 73. Rxb5 {[%emt 0:00:09]} Bd5 {[%emt 0:00:07]} 74. Kd4 {[%emt 0:00:36]} Bg2 {[%emt 0:00:06]} 75. Rb6+ {[%emt 0:00:07]} Ke7 {[%emt 0:00:18]} 76. Ke5 {[%emt 0:00:15]} Kf7 {[%emt 0:00:12]} 77. Rf6+ {[%emt 0:00:12]} Ke7 {[%emt 0:00:19]} 78. Rf4 {[%emt 0:00:19]} Kd7 {[%emt 0:00:20]} 79. Rf7+ {[%emt 0:00:10]} Kc6 {[%emt 0:00:09]} 80. Rh7 {[%emt 0:00:19]} Bf1 {[%emt 0:00:40]} 81. Rg7 {[%emt 0:00:04]} Bg2 {[%emt 0:00:14]} 82. Rf7 {[%emt 0:00:05]} Bh1 {[%emt 0:00:29]} 83. Rf6+ {[%emt 0:00:21]} Kd7 {[%emt 0:00:30]} 84. Rd6+ {[%emt 0:00:14]} Ke7 {[%emt 0:00:13]} 85. Rh6 {[%emt 0:00:06]} Bg2 {[%emt 0:00:09]} 86. Rh7+ {[%emt 0:00:04]} Kf8 {[%emt 0:00:16]} 87. Ke6 {[%emt 0:00:15]} Kg8 {[%emt 0:00:20]} 88. Re7 {[%emt 0:00:28]} Kf8 {[%emt 0:00:44]} 89. Kf6 {[%emt 0:00:05]} Bf1 {[%emt 0:00:49]} 90. Re5 {[%emt 0:00:40]} Bg2 {[%emt 0:00:22]} 91. Kg6 {[%emt 0:00:13]} Bc6 {[%emt 0:01:21]} 92. Re6 {[%emt 0:00:06]} Bd5 {[%emt 0:00:23]} 93. Re5 {[%emt 0:00:45]} Bc6 {[%emt 0:00:25]} 94. Re3 {[%emt 0:00:42]} Bg2 {[%emt 0:00:12]} 95. Kf6 {[%emt 0:00:12]} Bf1 {[%emt 0:00:28]} 96. Rf3 {[%emt 0:00:36]} Bg2 {[%emt 0:00:05]} 97. Re3 {[%emt 0:00:20]} Bf1 {[%emt 0:00:04]} 98. Kg5 {[%emt 0:00:13]} Bg2 {[%emt 0:00:27]} 99. Kg6 {[%emt 0:00:05]} Bd5 {[%emt 0:02:51]} 100. Rxh3 {[%emt 0:00:05]} Be4+ {[%emt 0:00:07]} 101. Kf6 {[%emt 0:00:06]} Kg8 {[%emt 0:00:08]} 102. Kg5 {[%emt 0:01:21]} Kf7 {[%emt 0:00:40]} 103. Kh6 {[%emt 0:00:12]} Kg8 {[%emt 0:00:31]} 104. Rg3+ {[%emt 0:00:21]} Kh8 {[%emt 0:00:10]} 105. Rg7 {[%emt 0:00:47]} Bd3 {[%emt 0:00:17]} 106. Rd7 {[%emt 0:00:18]} Bc4 {[%emt 0:00:10]} 107. h4 {[%emt 0:00:25]} Bb3 {[%emt 0:00:15]} 108. Rh7+ {[%emt 0:00:16]} Kg8 {[%emt 0:00:07]} 109. Rb7 {[%emt 0:00:14]} Bc2 {[%emt 0:00:20]} 110. h5 {[%emt 0:00:40]} Bd3 {[%emt 0:00:32]} 111. Rg7+ {[%emt 0:00:10]} Kh8 {[%emt 0:00:14]} 112. Rd7 {[%emt 0:00:38]} Bc4 {[%emt 0:00:26]} 113. Kg6 {[%emt 0:00:10]} Bb3 {[%emt 0:00:23]} 114. Rc7 {[%emt 0:00:44]} Ba2 {[%emt 0:00:42]} 115. Rh7+ {[%emt 0:00:11]} Kg8 {[%emt 0:00:11]} 116. Rb7 {[%emt 0:00:07]} Kh8 {[%emt 0:01:56]} 117. h6 {[%emt 0:00:14]} Bd5 {[%emt 0:00:42]} 118. Re7 {[%emt 0:00:11]} Bc4 {[%emt 0:02:33]} 119. h7 {[%emt 0:00:07]} Bd3+ {[%emt 0:00:17]} 120. Kh6 {[%emt 0:00:06]} Bg6 {[%emt 0:00:29]} 121. Rd7 {[%emt 0:00:26]} Be8 {[%emt 0:00:25]} 122. Rd6 {[%emt 0:00:19]} Bd7 {[%emt 0:00:31]} 123. Rf6 {[%emt 0:00:04]} 1-0

[Event "Amsterdam Chess Open 2024"]
[Site "Amsterdam"]
[Date "2024.11.01"]
[Round "2.7"]
[White "Maters, Arthur"]
[Black "Castillo Dalmau, Albert"]
[Result "1-0"]
[ECO "B12"]
[WhiteElo "2118"]
[BlackElo "2318"]
[Annotator "RC"]
[PlyCount "63"]
[EventDate "2024.10.31"]
[EventType "swiss"]
[EventCountry "NED"]
[SourceTitle "playchess.com"]
[Source "ChessBase"]
[SourceQuality "1"]
[TimeControl "5400+30"]

1. e4 {[%emt 0:00:02]} c6 {[%emt 0:02:09]} 2. d4 {[%emt 0:00:22]} d5 {[%emt 0:00:06]} 3. e5 {[%emt 0:01:06]} Bf5 {[%emt 0:01:57]} 4. h4 {[%emt 0:00:09]} h5 {[%emt 0:01:09]} 5. Bd3 {[%emt 0:00:22]} Bxd3 {[%emt 0:00:06]} 6. Qxd3 {[%emt 0:00:05]} e6 {[%emt 0:00:14]} 7. Bg5 {[%emt 0:00:17]} Qa5+ {[%emt 0:03:27]} 8. Nd2 {[%emt 0:00:06]} Nh6 {[%emt 0:02:02]} 9. Ne2 {[%emt 0:01:46]} Qa6 {[%emt 0:01:43]} 10. c4 {[%emt 0:00:12]} Bb4 {[%emt 0:01:35]} 11. O-O {[%emt 0:08:22]} Nd7 {[%emt 0:06:47]} 12. Ng3 {[%emt 0:09:38]} g6 {[%emt 0:05:18]} 13. a3 {[%emt 0:01:07]} dxc4 {[%emt 0:07:23]} 14. Nxc4 {[%emt 0:05:23]} Nb6 {[%emt 0:00:25]} 15. axb4 {[%emt 0:04:48]} Qxc4 {[%emt 0:00:07]} 16. Qd2 {[%emt 0:00:13]} Nf5 {[%emt 0:02:40]} 17. Nxf5 {[%emt 0:04:15]} gxf5 {[%emt 0:04:30]} 18. Rfc1 {[%emt 0:08:22]} Qd5 {[%emt 0:00:41]} 19. Rc5 {[%emt 0:00:07]} Qd7 {[%emt 0:00:20]} 20. b5 {[%emt 0:00:17]} cxb5 {[%emt 0:01:59]} 21. Rac1 {[%emt 0:01:40]} Nd5 {[%emt 0:15:06]} 22. R1c2 {[%emt 0:08:59]} b6 {[%emt 0:29:03]} 23. Rc6 {[%emt 0:00:12]} Qb7 {[%emt 0:00:10]} 24. Qc1 {[%emt 0:01:05]} Kd7 {[%emt 0:00:10]} 25. Rd6+ {[%emt 0:01:21]} Ke8 {[%emt 0:00:04]} 26. Rxd5 {[%emt 0:05:51]} exd5 {[%emt 0:00:03]} 27. Rc7 {[%emt 0:00:05]} Qb8 {[%emt 0:00:03]} 28. Be7 {[%emt 0:00:10]} Rh6 {[%emt 0:01:15]} 29. Bd6 {[%emt 0:05:18]} Rxd6 {[%emt 0:00:15]} 30. exd6 {[%emt 0:00:03]} Qd8 {[%emt 0:00:07]} 31. Qc6+ {[%emt 0:01:14]} Kf8 {[%emt 0:00:05]} 32. d7 {[%emt 0:00:04]} 1-0

[Event "Amsterdam Chess Open 2024"]
[Site "Amsterdam"]
[Date "2024.11.01"]
[Round "2.8"]
[White "Jonsson, Gauti Pall"]
[Black "Elgersma, Onno"]
[Result "1/2-1/2"]
[ECO "C01"]
[WhiteElo "2098"]
[BlackElo "2311"]
[Annotator "RC"]
[PlyCount "117"]
[EventDate "2024.10.31"]
[EventType "swiss"]
[EventCountry "NED"]
[SourceTitle "playchess.com"]
[Source "ChessBase"]
[SourceQuality "1"]
[TimeControl "5400+30"]

1. e4 {[%emt 0:00:08]} e6 {[%emt 0:00:16]} 2. d4 {[%emt 0:00:18]} d5 {[%emt 0:00:13]} 3. Bd3 {[%emt 0:00:45]} dxe4 {[%emt 0:00:39]} 4. Bxe4 {[%emt 0:00:09]} Nf6 {[%emt 0:00:43]} 5. Bf3 {[%emt 0:00:16]} c5 {[%emt 0:02:18]} 6. Ne2 {[%emt 0:02:42]} Nc6 {[%emt 0:00:09]} 7. Be3 {[%emt 0:00:47]} e5 {[%emt 0:00:58]} 8. Bxc6+ {[%emt 0:01:34]} bxc6 {[%emt 0:00:21]} 9. dxe5 {[%emt 0:00:41]} Qxd1+ {[%emt 0:00:06]} 10. Kxd1 {[%emt 0:00:09]} Ng4 {[%emt 0:00:04]} 11. Nd2 {[%emt 0:02:13]} Be7 {[%emt 0:10:15]} 12. Ke1 {[%emt 0:09:35]} Nxe5 {[%emt 0:08:29]} 13. Ne4 {[%emt 0:03:31]} O-O {[%emt 0:13:20]} 14. Bxc5 {[%emt 0:03:37]} Re8 {[%emt 0:05:31]} 15. Bxe7 {[%emt 0:04:23]} Rxe7 {[%emt 0:00:04]} 16. f3 {[%emt 0:08:21]} Ba6 {[%emt 0:07:51]} 17. Nd4 {[%emt 0:03:02]} Rd8 {[%emt 0:08:09]} 18. Nf5 {[%emt 0:01:26]} Nxf3+ {[%emt 0:06:20]} 19. gxf3 {[%emt 0:02:08]} Re5 {[%emt 0:00:37]} 20. Nxg7 {[%emt 0:05:01]} Kxg7 {[%emt 0:00:23]} 21. Rg1+ {[%emt 0:01:23]} Kf8 {[%emt 0:05:03]} 22. Rd1 {[%emt 0:00:31]} Rb8 {[%emt 0:03:20]} 23. Kf2 {[%emt 0:07:01]} f5 {[%emt 0:04:07]} 24. Ng5 {[%emt 0:00:58]} Re2+ {[%emt 0:02:34]} 25. Kg3 {[%emt 0:00:12]} h6 {[%emt 0:05:28]} 26. Nh7+ {[%emt 0:01:29]} Kf7 {[%emt 0:06:23]} 27. Rd7+ {[%emt 0:02:22]} Re7 {[%emt 0:00:23]} 28. Rxe7+ {[%emt 0:03:24]} Kxe7 {[%emt 0:00:02]} 29. Kf4 {[%emt 0:00:32]} Kf7 {[%emt 0:00:20]} 30. Kxf5 {[%emt 0:00:52]} Bc8+ {[%emt 0:01:27]} 31. Ke5 {[%emt 0:01:24]} Rb5+ {[%emt 0:00:30]} 32. Kd6 {[%emt 0:00:37]} Bf5 {[%emt 0:00:38]} 33. Ng5+ {[%emt 0:02:34]} hxg5 {[%emt 0:00:47]} 34. Rxg5 {[%emt 0:00:08]} Kf6 {[%emt 0:00:45]} 35. Rg8 {[%emt 0:00:37]} Rxb2 {[%emt 0:00:39]} 36. Rf8+ {[%emt 0:00:31]} Kg5 {[%emt 0:00:29]} 37. h4+ {[%emt 0:02:10]} Kf4 {[%emt 0:00:11]} 38. c4 {[%emt 0:00:12]} Rxa2 {[%emt 0:02:22]} 39. Kxc6 {[%emt 0:00:27]} a5 {[%emt 0:01:03]} 40. h5 {[%emt 0:02:16]} a4 {[%emt 0:03:58]} 41. Kb5 {[%emt 0:02:40]} a3 {[%emt 0:00:59]} 42. Kb4 {[%emt 0:00:52]} Ra1 {[%emt 0:00:54]} 43. Kb3 {[%emt 0:01:08]} a2 {[%emt 0:00:58]} 44. h6 {[%emt 0:02:05]} Rh1 {[%emt 0:01:50]} 45. Kxa2 {[%emt 0:00:12]} Rxh6 {[%emt 0:00:04]} 46. Kb3 {[%emt 0:00:15]} Rh3 {[%emt 0:00:32]} 47. c5 {[%emt 0:00:54]} Rxf3+ {[%emt 0:00:06]} 48. Kb4 {[%emt 0:00:27]} Ke5 {[%emt 0:00:16]} 49. c6 {[%emt 0:00:35]} Rf1 {[%emt 0:01:15]} 50. Kc5 {[%emt 0:00:23]} Rc1+ {[%emt 0:00:16]} 51. Kb6 {[%emt 0:00:20]} Be6 {[%emt 0:00:13]} 52. Rd8 {[%emt 0:00:40]} Rb1+ {[%emt 0:00:57]} 53. Ka6 {[%emt 0:00:43]} Rc1 {[%emt 0:00:46]} 54. Kb6 {[%emt 0:00:32]} Kf6 {[%emt 0:00:28]} 55. c7 {[%emt 0:00:42]} Ke7 {[%emt 0:00:21]} 56. Kb7 {[%emt 0:00:43]} Rb1+ {[%emt 0:00:19]} 57. Ka7 {[%emt 0:00:37]} Bd7 {[%emt 0:00:50]} 58. c8=Q {[%emt 0:00:19]} Bxc8 {[%emt 0:00:07]} 59. Rxc8 {[%emt 0:00:08]} 1/2-1/2

[Event "Amsterdam Chess Open 2024"]
[Site "Amsterdam"]
[Date "2024.11.01"]
[Round "2.9"]
[White "Kazarian, Anna-Maja"]
[Black "Brienen, Jacob"]
[Result "1-0"]
[ECO "C65"]
[WhiteElo "2178"]
[BlackElo "1966"]
[Annotator "RC"]
[PlyCount "85"]
[EventDate "2024.10.31"]
[EventType "swiss"]
[EventCountry "NED"]
[SourceTitle "playchess.com"]
[Source "ChessBase"]
[SourceQuality "1"]
[TimeControl "5400+30"]

1. e4 {[%emt 0:01:24]} e5 {[%emt 0:00:10]} 2. Nf3 {[%emt 0:00:03]} Nc6 {[%emt 0:00:08]} 3. Bb5 {[%emt 0:00:02]} Nf6 {[%emt 0:00:09]} 4. d3 {[%emt 0:00:04]} Ne7 {[%emt 0:00:05]} 5. O-O {[%emt 0:01:10]} c6 {[%emt 0:00:12]} 6. Ba4 {[%emt 0:00:17]} Ng6 {[%emt 0:00:13]} 7. c4 {[%emt 0:03:14]} Be7 {[%emt 0:02:28]} 8. Nc3 {[%emt 0:00:35]} O-O {[%emt 0:00:29]} 9. d4 {[%emt 0:02:27]} d6 {[%emt 0:04:31]} 10. h3 {[%emt 0:01:52]} Re8 {[%emt 0:04:53]} 11. Re1 {[%emt 0:04:33]} a6 {[%emt 0:06:08]} 12. Bb3 {[%emt 0:09:30]} h6 {[%emt 0:05:43]} 13. a4 {[%emt 0:01:36]} a5 {[%emt 0:01:20]} 14. Be3 {[%emt 0:04:09]} Bd7 {[%emt 0:08:13]} 15. dxe5 {[%emt 0:22:50]} dxe5 {[%emt 0:01:25]} 16. c5 {[%emt 0:00:36]} Qc8 {[%emt 0:02:59]} 17. Nd2 {[%emt 0:03:03]} Rd8 {[%emt 0:04:23]} 18. Qe2 {[%emt 0:06:25]} Be6 {[%emt 0:05:15]} 19. Bxe6 {[%emt 0:11:01]} Qxe6 {[%emt 0:00:24]} 20. Qc4 {[%emt 0:01:18]} Qxc4 {[%emt 0:02:12]} 21. Nxc4 {[%emt 0:00:04]} Nd7 {[%emt 0:02:12]} 22. Rad1 {[%emt 0:03:44]} Nxc5 {[%emt 0:08:10]} 23. Rxd8+ {[%emt 0:03:13]} Rxd8 {[%emt 0:00:19]} 24. Nxa5 {[%emt 0:00:11]} Ra8 {[%emt 0:03:41]} 25. Bxc5 {[%emt 0:04:11]} Rxa5 {[%emt 0:01:30]} 26. Bxe7 {[%emt 0:00:43]} Nxe7 {[%emt 0:00:08]} 27. Rd1 {[%emt 0:00:33]} b5 {[%emt 0:09:21]} 28. Rd8+ {[%emt 0:00:16]} Kh7 {[%emt 0:00:09]} 29. axb5 {[%emt 0:04:40]} cxb5 {[%emt 0:00:42]} 30. Rb8 {[%emt 0:00:13]} Ra1+ {[%emt 0:05:06]} 31. Kh2 {[%emt 0:00:04]} Kg6 {[%emt 0:02:03]} 32. Rxb5 {[%emt 0:00:26]} f6 {[%emt 0:00:44]} 33. Rb7 {[%emt 0:00:38]} Nc6 {[%emt 0:00:57]} 34. Nd5 {[%emt 0:00:46]} Rb1 {[%emt 0:01:35]} 35. f4 {[%emt 0:04:16]} exf4 {[%emt 0:03:25]} 36. Nxf4+ {[%emt 0:00:03]} Kh7 {[%emt 0:01:19]} 37. Nh5 {[%emt 0:00:19]} Kh8 {[%emt 0:01:20]} 38. Rxg7 {[%emt 0:03:48]} Rxb2 {[%emt 0:00:44]} 39. Rc7 {[%emt 0:00:31]} Ne5 {[%emt 0:01:00]} 40. Nxf6 {[%emt 0:00:23]} Nf3+ {[%emt 0:00:16]} 41. Kg3 {[%emt 0:00:05]} Ng5 {[%emt 0:00:09]} 42. h4 {[%emt 0:00:35]} Rb3+ {[%emt 0:00:20]} 43. Kh2 {[%emt 0:00:10]} 1-0

[Event "Amsterdam Chess Open 2024"]
[Site "Amsterdam"]
[Date "2024.11.01"]
[Round "2.10"]
[White "Van Arkel, Rogier"]
[Black "Saine, Zachary"]
[Result "1/2-1/2"]
[ECO "C24"]
[WhiteElo "2235"]
[BlackElo "2038"]
[Annotator "RC"]
[PlyCount "43"]
[EventDate "2024.10.31"]
[EventType "swiss"]
[EventCountry "NED"]
[SourceTitle "playchess.com"]
[Source "ChessBase"]
[SourceQuality "1"]
[TimeControl "5400+30"]

1. e4 {[%emt 0:00:03]} e5 {[%emt 0:00:08]} 2. Bc4 {[%emt 0:00:49]} Nf6 {[%emt 0:00:22]} 3. d3 {[%emt 0:00:12]} c6 {[%emt 0:00:17]} 4. Nf3 {[%emt 0:00:17]} d5 {[%emt 0:00:32]} 5. Bb3 {[%emt 0:00:10]} Bd6 {[%emt 0:00:11]} 6. Nc3 {[%emt 0:00:08]} O-O {[%emt 0:00:13]} 7. h3 {[%emt 0:15:03]} dxe4 {[%emt 0:01:18]} 8. dxe4 {[%emt 0:04:50]} Qc7 {[%emt 0:00:55]} 9. Bg5 {[%emt 0:02:48]} Nfd7 {[%emt 0:01:33]} 10. Qd2 {[%emt 0:17:31]} Nc5 {[%emt 0:01:52]} 11. O-O-O {[%emt 0:06:46]} Nxb3+ {[%emt 0:01:35]} 12. axb3 {[%emt 0:02:35]} Be7 {[%emt 0:06:31]} 13. Bxe7 {[%emt 0:00:57]} Qxe7 {[%emt 0:00:04]} 14. Qd6 {[%emt 0:00:58]} Qxd6 {[%emt 0:00:14]} 15. Rxd6 {[%emt 0:00:06]} f6 {[%emt 0:00:26]} 16. b4 {[%emt 0:00:57]} Kf7 {[%emt 0:12:39]} 17. Rhd1 {[%emt 0:04:27]} Ke7 {[%emt 0:01:35]} 18. Na4 {[%emt 0:17:53]} Na6 {[%emt 0:02:32]} 19. c3 {[%emt 0:00:49]} Be6 {[%emt 0:01:15]} 20. Nc5 {[%emt 0:00:38]} Nxc5 {[%emt 0:00:29]} 21. bxc5 {[%emt 0:00:07]} Rfd8 {[%emt 0:00:17]} 22. Rxd8 {[%emt 0:04:09]} 1/2-1/2

[Event "Amsterdam Chess Open 2024"]
[Site "Amsterdam"]
[Date "2024.11.01"]
[Round "2.11"]
[White "Stan Kok"]
[Black "Baarslag, Ed"]
[Result "0-1"]
[ECO "E20"]
[WhiteElo "1906"]
[BlackElo "1993"]
[Annotator "RC"]
[PlyCount "82"]
[EventDate "2024.10.31"]
[EventType "swiss"]
[EventCountry "NED"]
[SourceTitle "playchess.com"]
[Source "ChessBase"]
[SourceQuality "1"]
[TimeControl "5400+30"]

1. d4 {[%emt 0:00:41]} Nf6 {[%emt 0:00:06]} 2. c4 {[%emt 0:00:08]} e6 {[%emt 0:00:06]} 3. g3 {[%emt 0:00:36]} Bb4+ {[%emt 0:01:23]} 4. Nc3 {[%emt 0:01:07]} d5 {[%emt 0:03:11]} 5. Bg2 {[%emt 0:00:09]} c6 {[%emt 0:01:18]} 6. Qc2 {[%emt 0:02:15]} Nbd7 {[%emt 0:02:02]} 7. cxd5 {[%emt 0:00:31]} exd5 {[%emt 0:00:21]} 8. e3 {[%emt 0:00:12]} O-O {[%emt 0:01:00]} 9. Nge2 {[%emt 0:00:36]} Re8 {[%emt 0:01:02]} 10. O-O {[%emt 0:00:27]} a5 {[%emt 0:01:51]} 11. a3 {[%emt 0:00:08]} Bd6 {[%emt 0:01:05]} 12. Bd2 {[%emt 0:00:12]} Qe7 {[%emt 0:03:58]} 13. Rfc1 {[%emt 0:00:29]} Nb6 {[%emt 0:04:47]} 14. Na4 {[%emt 0:02:34]} Nc4 {[%emt 0:01:30]} 15. Be1 {[%emt 0:00:24]} Nxe3 {[%emt 0:04:42]} 16. fxe3 {[%emt 0:01:36]} Qxe3+ {[%emt 0:00:14]} 17. Bf2 {[%emt 0:00:17]} Qxe2 {[%emt 0:00:24]} 18. Qb3 {[%emt 0:01:00]} Qe7 {[%emt 0:05:14]} 19. Nb6 {[%emt 0:04:59]} Rb8 {[%emt 0:00:20]} 20. Nxc8 {[%emt 0:00:04]} Rbxc8 {[%emt 0:00:44]} 21. Re1 {[%emt 0:01:10]} Qc7 {[%emt 0:04:06]} 22. Qc3 {[%emt 0:00:58]} Rxe1+ {[%emt 0:04:01]} 23. Rxe1 {[%emt 0:00:11]} Re8 {[%emt 0:00:35]} 24. Rxe8+ {[%emt 0:00:18]} Nxe8 {[%emt 0:00:07]} 25. b4 {[%emt 0:00:13]} axb4 {[%emt 0:01:32]} 26. axb4 {[%emt 0:00:07]} Qb6 {[%emt 0:00:49]} 27. Be1 {[%emt 0:01:58]} Nc7 {[%emt 0:03:07]} 28. Qe3 {[%emt 0:02:04]} Ne6 {[%emt 0:02:13]} 29. Bf2 {[%emt 0:00:33]} Qxb4 {[%emt 0:03:03]} 30. Bh3 {[%emt 0:00:15]} Qb1+ {[%emt 0:00:33]} 31. Be1 {[%emt 0:00:43]} Nxd4 {[%emt 0:07:58]} 32. Qe8+ {[%emt 0:00:51]} Bf8 {[%emt 0:00:06]} 33. Kf2 {[%emt 0:00:05]} Qc2+ {[%emt 0:02:41]} 34. Kf1 {[%emt 0:00:35]} Qd3+ {[%emt 0:00:53]} 35. Kg1 {[%emt 0:01:32]} Qe4 {[%emt 0:04:29]} 36. Qxe4 {[%emt 0:00:57]} dxe4 {[%emt 0:00:02]} 37. Bc8 {[%emt 0:00:17]} Nf3+ {[%emt 0:01:20]} 38. Kf2 {[%emt 0:03:20]} Bc5+ {[%emt 0:02:20]} 39. Ke2 {[%emt 0:03:37]} b5 {[%emt 0:01:03]} 40. Bb7 {[%emt 0:00:27]} b4 {[%emt 0:01:47]} 41. Bxc6 {[%emt 0:00:02]} Nd4+ {[%emt 0:00:13]} 0-1

[Event "Amsterdam Chess Open 2024"]
[Site "Amsterdam"]
[Date "2024.11.01"]
[Round "2.12"]
[White "Dokter, Kasper"]
[Black "Schoonackers, Jeroen"]
[Result "0-1"]
[ECO "C45"]
[WhiteElo "1902"]
[BlackElo "1983"]
[Annotator "RC"]
[PlyCount "58"]
[EventDate "2024.10.31"]
[EventType "swiss"]
[EventCountry "NED"]
[SourceTitle "playchess.com"]
[Source "ChessBase"]
[SourceQuality "1"]
[TimeControl "5400+30"]

1. e4 {[%emt 0:00:05]} e5 {[%emt 0:00:07]} 2. Nf3 {[%emt 0:00:28]} Nc6 {[%emt 0:00:06]} 3. d4 {[%emt 0:01:01]} exd4 {[%emt 0:00:06]} 4. Nxd4 {[%emt 0:00:06]} Nf6 {[%emt 0:00:07]} 5. Nxc6 {[%emt 0:05:13]} bxc6 {[%emt 0:00:19]} 6. Bd3 {[%emt 0:00:17]} d5 {[%emt 0:01:14]} 7. Nd2 {[%emt 0:15:37]} Bc5 {[%emt 0:12:16]} 8. O-O {[%emt 0:06:53]} O-O {[%emt 0:08:25]} 9. Nb3 {[%emt 0:08:25]} Bd6 {[%emt 0:06:21]} 10. Bg5 {[%emt 0:06:18]} h6 {[%emt 0:01:48]} 11. Bh4 {[%emt 0:25:09]} g5 {[%emt 0:07:13]} 12. f4 {[%emt 0:00:11]} dxe4 {[%emt 0:02:38]} 13. fxg5 {[%emt 0:00:22]} Ng4 {[%emt 0:01:35]} 14. Bxe4 {[%emt 0:01:17]} hxg5 {[%emt 0:13:36]} 15. h3 {[%emt 0:11:40]} gxh4 {[%emt 0:06:35]} 16. hxg4 {[%emt 0:00:19]} Qg5 {[%emt 0:01:29]} 17. Bf5 {[%emt 0:07:43]} Qe3+ {[%emt 0:08:41]} 18. Kh1 {[%emt 0:01:46]} Qg3 {[%emt 0:01:54]} 19. Kg1 {[%emt 0:00:01]} Be6 {[%emt 0:09:09]} 20. Qd2 {[%emt 0:02:46]} Qh2+ {[%emt 0:03:00]} 21. Kf2 {[%emt 0:00:01]} Bf4 {[%emt 0:01:46]} 22. Qd3 {[%emt 0:03:47]} Bg3+ {[%emt 0:04:25]} 23. Kf3 {[%emt 0:00:28]} Rad8 {[%emt 0:02:13]} 24. Qe3 {[%emt 0:00:55]} Bd5+ {[%emt 0:01:48]} 25. Be4 {[%emt 0:00:03]} Bxe4+ {[%emt 0:01:27]} 26. Qxe4 {[%emt 0:00:05]} Bd6 {[%emt 0:01:01]} 27. Kf2 {[%emt 0:01:43]} Rfe8 {[%emt 0:00:29]} 28. Qf5 {[%emt 0:01:06]} Re5 {[%emt 0:00:36]} 29. Qf3 {[%emt 0:00:36]} Bc5+ {[%emt 0:00:14]} 0-1